bitfinex/quotes_BTCUSD_20250526
["timestamp","ask_amount","ask_price","bid_price","bid_amount"]
[1748264357283,0.91518161,109870.0,109860.0,0.530889]
[1748264357750,0.91518161,109870.0,109860.0,0.344]
[1748264357999,0.91518161,109870.0,109860.0,0.530976]
[1748264358474,0.91518161,109870.0,109860.0,0.344]
[1748264358933,0.91518161,109870.0,109860.0,0.497176]
[1748264359141,0.91518161,109870.0,109860.0,0.86078711]
[1748264360368,0.91518161,109870.0,109860.0,0.344]
[1748264360561,1.00470312,109870.0,109860.0,0.344]
[1748264360870,0.94228161,109870.0,109860.0,0.344]
[1748264361416,0.91518161,109870.0,109860.0,0.70761111]
[1748264365342,0.91518161,109870.0,109860.0,0.344]
[1748264365552,0.94358161,109870.0,109860.0,0.36561111]
[1748264365752,0.94358161,109870.0,109860.0,0.002]
[1748264366189,1.03458161,109870.0,109860.0,0.002]
[1748264366432,1.04912246,109870.0,109860.0,0.002]
[1748264367882,1.13864397,109870.0,109860.0,0.002]
[1748264368251,1.13864397,109870.0,109860.0,0.010483]
[1748264368434,1.14502951,109870.0,109860.0,0.010483]
[1748264368644,1.24502951,109870.0,109860.0,0.010483]
[1748264369452,1.24502951,109870.0,109860.0,0.001]
[1748264369864,1.24802951,109870.0,109860.0,0.001]
[1748264370761,0.5206522,109860.0,109850.0,0.00848285]
[1748264370975,0.72891927,109860.0,109850.0,0.00848285]
[1748264371187,0.74346012,109860.0,109850.0,0.00848285]
[1748264371630,0.65393861,109860.0,109850.0,0.00848285]
[1748264372272,0.65493861,109860.0,109850.0,0.00848285]
[1748264372496,0.35693861,109860.0,109850.0,0.00848285]
[1748264373792,0.72054972,109860.0,109850.0,0.00848285]
[1748264374022,0.81154972,109860.0,109850.0,0.00848285]
[1748264374235,0.92839123,109860.0,109850.0,0.00848285]
[1748264374456,0.86271045,109850.0,109840.0,0.342]
[1748264374664,1.09781601,109850.0,109840.0,0.342]
[1748264375072,1.09781601,109850.0,109840.0,0.35048614]
[1748264375707,1.09781601,109850.0,109840.0,0.01098344]
[1748264375908,1.18733752,109850.0,109840.0,0.01098344]
[1748264376113,1.21465752,109850.0,109840.0,0.01098344]
[1748264376290,1.21465752,109850.0,109840.0,0.0024973]
[1748264376711,1.22103654,109850.0,109840.0,0.0024973]
[1748264377971,1.22203654,109850.0,109840.0,0.0024973]
[1748264378310,1.22403654,109850.0,109840.0,0.0024973]
[1748264379603,1.21765752,109850.0,109840.0,0.0024973]
[1748264380824,1.58126863,109850.0,109840.0,0.0024973]
[1748264381034,1.58764268,109850.0,109840.0,0.0024973]
[1748264381241,1.22403157,109850.0,109840.0,0.0024973]
[1748264381923,1.37695157,109850.0,109840.0,0.0024973]
[1748264384490,0.60910481,109830.0,109820.0,0.04595324]
[1748264384677,1.02634997,109830.0,109820.0,2.67189042]
[1748264385083,1.02634997,109830.0,109820.0,2.70099042]
[1748264385202,1.02634997,109830.0,109820.0,2.67384042]
[1748264385402,1.02634997,109830.0,109820.0,2.68231363]
[1748264385614,1.02634997,109830.0,109820.0,2.68331363]
[1748264386079,1.02634997,109830.0,109820.0,2.68431363]
[1748264386482,1.02634997,109830.0,109820.0,2.56343563]
[1748264387161,1.02634997,109830.0,109820.0,1.33429063]
[1748264387778,1.11587148,109830.0,109820.0,0.74186963]
[1748264388315,1.02634997,109830.0,109820.0,0.74186963]
[1748264389736,1.02634997,109830.0,109820.0,0.59543563]
[1748264389964,1.02634997,109830.0,109820.0,0.44928663]
[1748264391391,1.11734997,109830.0,109820.0,0.02727552]
[1748264392205,1.11734997,109830.0,109820.0,0.39088663]
[1748264392346,1.20687148,109830.0,109820.0,0.39088663]
[1748264393445,1.20687148,109830.0,109820.0,0.01262228]
[1748264394007,1.26197148,109830.0,109820.0,0.01262228]
[1748264394203,1.24921233,109830.0,109820.0,0.01262228]
[1748264394552,1.40209233,109830.0,109820.0,0.01262228]
[1748264396955,1.37429233,109830.0,109820.0,0.01262228]
[1748264397620,1.79600344,109830.0,109820.0,0.01262228]
[1748264398257,1.80238534,109830.0,109820.0,0.00414907]
[1748264398436,2.13971234,109830.0,109820.0,0.00314907]
[1748264398878,2.14171234,109830.0,109820.0,0.00214907]
[1748264399106,2.14271234,109830.0,109820.0,0.00214907]
[1748264399296,1.74471083,109830.0,109820.0,0.00214907]
[1748264399524,1.67957972,109830.0,109820.0,0.00214907]
[1748264400586,1.35037972,109830.0,109820.0,0.00214907]
[1748264401682,1.35029972,109830.0,109820.0,0.00214907]
[1748264402072,0.19122183,109820.0,109810.0,0.0279]
[1748264402272,0.28076739,109820.0,109810.0,0.02804913]
[1748264402638,0.28076739,109820.0,109810.0,0.03654005]
[1748264403977,0.87920739,109820.0,109810.0,1.14456316]
[1748264404181,0.87920739,109820.0,109810.0,1.07888216]
[1748264405457,0.87920739,109820.0,109810.0,0.74130316]
[1748264405790,1.03360739,109820.0,109810.0,0.74130316]
[1748264405998,1.03360739,109820.0,109810.0,1.08130316]
[1748264406207,1.17924739,109820.0,109810.0,1.08130316]
[1748264406523,1.03360739,109820.0,109810.0,1.08130316]
[1748264406721,1.17924739,109820.0,109810.0,1.08130316]
[1748264409079,0.88076739,109820.0,109810.0,1.08130316]
[1748264409235,1.17924739,109820.0,109810.0,1.08130316]
[1748264410641,0.20032739,109820.0,109810.0,1.63615351]
[1748264410848,0.20032739,109820.0,109810.0,1.62704704]
[1748264411056,0.19122183,109820.0,109810.0,1.63615367]
[1748264411254,0.19122183,109820.0,109810.0,1.64526014]
[1748264411460,0.19122183,109820.0,109810.0,1.65124652]
[1748264411613,0.20032722,109820.0,109810.0,1.6694592]
[1748264411822,0.01821103,109820.0,109810.0,1.6704592]
[1748264412042,0.02731583,109820.0,109810.0,1.76911081]
[1748264412259,0.03642147,109820.0,109810.0,1.76911081]
[1748264412455,0.03642147,109820.0,109810.0,1.77011081]
[1748264412818,0.02731583,109820.0,109810.0,1.77011081]
[1748264413135,0.03642147,109820.0,109810.0,1.75663351]
[1748264413383,0.02731583,109820.0,109810.0,1.75663351]
[1748264414104,0.02731451,109830.0,109820.0,0.58822183]
[1748264414315,0.01820953,109830.0,109820.0,6.52925474]
[1748264415107,0.01820904,109830.0,109820.0,6.52925474]
[1748264415313,0.02731385,109830.0,109820.0,6.52925474]
[1748264415536,0.01820788,109840.0,109830.0,0.20030897]
[1748264415757,0.00910365,109840.0,109830.0,6.04363559]
[1748264415992,0.04551866,109840.0,109830.0,6.04363559]
[1748264416205,0.20939463,109840.0,109830.0,5.99474942]
[1748264416434,0.01110323,109850.0,109840.0,0.20029073]
[1748264416644,0.21137599,109850.0,109840.0,5.67090184]
[1748264416816,0.02930954,109850.0,109840.0,6.03451295]
[1748264417022,0.21137599,109850.0,109840.0,6.0436166]
[1748264417421,0.21137599,109850.0,109840.0,6.03451295]
[1748264417618,0.02930888,109850.0,109840.0,6.05445731]
[1748264417823,0.03841211,109850.0,109840.0,6.05445731]
[1748264418023,0.18403331,109870.0,109860.0,0.58815229]
[1748264418259,0.18403331,109870.0,109860.0,6.36537451]
[1748264418460,0.18403331,109870.0,109860.0,6.17422222]
[1748264418836,0.18403331,109870.0,109860.0,6.37447667]
[1748264419034,0.01110108,109870.0,109860.0,6.74718969]
[1748264419277,0.02980038,109870.0,109860.0,6.38357858]
[1748264419597,0.03890187,109870.0,109860.0,6.38357858]
[1748264419723,0.22093568,109870.0,109860.0,6.37447667]
[1748264420122,0.20273319,109870.0,109860.0,1.823245]
[1748264420324,0.96816683,109870.0,109860.0,0.34]
[1748264420608,0.4911522,109860.0,109850.0,0.38890628]
[1748264420732,0.87905776,109860.0,109850.0,0.60160928]
[1748264420954,0.87905776,109860.0,109850.0,0.36361111]
[1748264421164,0.57905776,109860.0,109850.0,0.70361111]
[1748264421363,0.57905776,109860.0,109850.0,1.86435811]
[1748264421564,1.17905776,109860.0,109850.0,1.80056811]
[1748264422250,1.17905776,109860.0,109850.0,1.80356811]
[1748264422465,1.17905776,109860.0,109850.0,1.83316811]
[1748264422810,1.17905776,109860.0,109850.0,1.83516811]
[1748264423011,1.0895122,109860.0,109850.0,1.83516811]
[1748264423212,0.4894722,109860.0,109850.0,2.22787922]
[1748264423457,0.3439122,109860.0,109850.0,2.22787922]
[1748264423672,0.1911522,109860.0,109850.0,2.22787922]
[1748264424019,0.1911522,109860.0,109850.0,1.86477055]
[1748264425696,0.1911522,109860.0,109850.0,1.6562103]
[1748264425890,0.1911522,109860.0,109850.0,1.52477055]
[1748264429998,0.1911522,109860.0,109850.0,1.65413408]
[1748264434327,0.1911522,109860.0,109850.0,1.66766703]
[1748264435357,0.1911522,109860.0,109850.0,1.0124715]
[1748264435582,0.4893922,109860.0,109850.0,0.9148885]
[1748264436916,0.87893776,109860.0,109850.0,0.9148885]
[1748264437136,0.87893776,109860.0,109850.0,0.55077495]
[1748264437379,1.02295927,109860.0,109850.0,0.005]
[1748264437603,0.72295927,109860.0,109850.0,0.005]
[1748264437804,0.82295927,109860.0,109850.0,0.005]
[1748264438187,0.20029073,109840.0,109830.0,0.37816474]
[1748264438348,0.20029073,109840.0,109830.0,2.85696074]
[1748264438730,0.34585073,109840.0,109830.0,2.85696074]
[1748264441926,0.34585073,109840.0,109830.0,2.32596974]
[1748264442132,0.34585073,109840.0,109830.0,2.25692974]
[1748264442340,0.34585073,109840.0,109830.0,2.18313274]
[1748264444144,0.34585073,109840.0,109830.0,2.54772581]
[1748264445031,0.34585073,109840.0,109830.0,2.60732581]
[1748264445231,0.20029073,109840.0,109830.0,2.60732581]
[1748264446027,0.20029073,109840.0,109830.0,2.78942541]
[1748264446249,0.20029073,109840.0,109830.0,2.7985303]
[1748264446613,0.01820721,109840.0,109830.0,3.52109265]
[1748264446858,0.02731103,109840.0,109830.0,3.15673934]
[1748264447012,0.02731103,109840.0,109830.0,3.16758013]
[1748264447428,0.00910348,109840.0,109830.0,3.746179]
[1748264447592,0.20028771,109850.0,109840.0,0.60659488]
[1748264447751,0.20028771,109850.0,109840.0,6.3202255]
[1748264448566,0.20028771,109850.0,109840.0,5.97032657]
[1748264449456,0.20028771,109850.0,109840.0,5.9794303]
[1748264449982,0.19118472,109850.0,109840.0,5.79745471]
[1748264450184,0.19118472,109850.0,109840.0,5.62910127]
[1748264450386,0.19118472,109850.0,109840.0,5.81118429]
[1748264450700,0.19118472,109850.0,109840.0,5.62910127]
[1748264450849,0.19118472,109850.0,109840.0,5.82028827]
[1748264451049,0.19118472,109850.0,109840.0,5.81118429]
[1748264451268,0.18208149,109850.0,109840.0,5.82028835]
[1748264451794,0.32764149,109850.0,109840.0,5.82028835]
[1748264452166,0.18208149,109850.0,109840.0,5.83849623]
[1748264452455,0.32764149,109850.0,109840.0,5.83849623]
[1748264453761,0.32764149,109850.0,109840.0,5.82939233]
[1748264453980,0.32764149,109850.0,109840.0,5.82028835]
[1748264454336,0.32764149,109850.0,109840.0,5.44683098]
[1748264454559,0.32764149,109850.0,109840.0,5.62910127]
[1748264460655,0.38394149,109850.0,109840.0,0.94638769]
[1748264460869,0.77348705,109850.0,109840.0,0.58203438]
[1748264461076,0.77348705,109850.0,109840.0,0.54950769]
[1748264461224,0.86300856,109850.0,109840.0,0.87505331]
[1748264462233,0.77348705,109850.0,109840.0,0.87505331]
[1748264463412,1.07348705,109850.0,109840.0,0.87505331]
[1748264464756,1.04578705,109850.0,109840.0,0.87505331]
[1748264465695,1.19838705,109850.0,109840.0,0.87505331]
[1748264466302,1.16978705,109850.0,109840.0,0.87505331]
[1748264467991,0.48208149,109850.0,109840.0,0.87505331]
[1748264468181,0.19118439,109850.0,109840.0,1.29800662]
[1748264468420,0.33674439,109850.0,109840.0,1.49829769]
[1748264468622,0.33674439,109850.0,109840.0,1.1447963]
[1748264468828,0.32764149,109850.0,109840.0,0.94450507]
[1748264469789,0.32764149,109850.0,109840.0,0.91510507]
[1748264469999,0.47678705,109850.0,109840.0,0.82069007]
[1748264470590,0.81139069,109850.0,109840.0,0.35085176]
[1748264470789,0.81139069,109850.0,109840.0,0.91550407]
[1748264471073,0.77678705,109850.0,109840.0,0.35085176]
[1748264471283,0.87678705,109850.0,109840.0,0.35085176]
[1748264471512,0.87678705,109850.0,109840.0,0.34]
[1748264471719,0.24800441,109830.0,109820.0,0.01285176]
[1748264471923,1.23570997,109830.0,109820.0,0.01285176]
[1748264472095,1.32523148,109830.0,109820.0,0.36133869]
[1748264472533,1.32523148,109830.0,109820.0,0.85829294]
[1748264472952,1.32523148,109830.0,109820.0,0.50744118]
[1748264473111,1.32523148,109830.0,109820.0,0.50759031]
[1748264473426,1.32523148,109830.0,109820.0,0.84759031]
[1748264473807,1.42523148,109830.0,109820.0,0.84759031]
[1748264475391,1.42823148,109830.0,109820.0,0.84759031]
[1748264476184,1.43023148,109830.0,109820.0,0.84759031]
[1748264476637,1.34070997,109830.0,109820.0,0.84759031]
[1748264477051,0.68574997,109830.0,109820.0,0.84759031]
[1748264477253,0.83834997,109830.0,109820.0,2.92604431]
[1748264477470,0.98394997,109830.0,109820.0,2.91755738]
[1748264477825,0.98394997,109830.0,109820.0,1.27273438]
[1748264478017,0.98394997,109830.0,109820.0,0.95505938]
[1748264479503,0.98394997,109830.0,109820.0,0.94156638]
[1748264479705,0.98394997,109830.0,109820.0,0.83910338]
[1748264479706,1.13267148,109830.0,109820.0,0.83910338]
[1748264480867,1.13267148,109830.0,109820.0,0.34214913]
[1748264481066,1.14721233,109830.0,109820.0,0.34214913]
[1748264481496,1.14721233,109830.0,109820.0,0.35061725]
[1748264482099,1.17453633,109830.0,109820.0,0.35061725]
[1748264484064,1.17453633,109830.0,109820.0,0.01061725]
[1748264484640,1.17453633,109830.0,109820.0,0.00214913]
[1748264492441,1.17453633,109830.0,109820.0,0.49910338]
[1748264492612,1.08501482,109830.0,109820.0,0.49910338]
[1748264493561,0.93941482,109830.0,109820.0,0.49910338]
[1748264493693,1.05517482,109830.0,109820.0,0.49910338]
[1748264494723,1.08267482,109830.0,109820.0,0.49910338]
[1748264497124,1.08267482,109830.0,109820.0,0.00214913]
[1748264497320,1.17219633,109830.0,109820.0,0.00214913]
[1748264497893,1.14473633,109830.0,109820.0,0.49910338]
[1748264498861,1.14473633,109830.0,109820.0,0.00214913]
[1748264499782,1.14473633,109830.0,109820.0,0.49910338]
[1748264499960,0.84653633,109830.0,109820.0,0.49910338]
[1748264500118,1.07347148,109830.0,109820.0,0.86600338]
[1748264500326,0.92783148,109830.0,109820.0,0.87449347]
[1748264500526,1.13830997,109830.0,109820.0,0.90209347]
[1748264500789,1.28394997,109830.0,109820.0,0.90209347]
[1748264501357,1.28394997,109830.0,109820.0,0.89360338]
[1748264501536,0.98574997,109830.0,109820.0,0.89360338]
[1748264501743,1.28394997,109830.0,109820.0,0.89360338]
[1748264502518,1.32345928,109830.0,109820.0,0.89360338]
[1748264503137,1.02525928,109830.0,109820.0,0.89360338]
[1748264503322,1.28390997,109830.0,109820.0,0.89360338]
[1748264504041,1.28390997,109830.0,109820.0,0.68293881]
[1748264504555,1.19436441,109830.0,109820.0,2.24978281]
[1748264504716,1.19436441,109830.0,109820.0,2.17284481]
[1748264505126,1.09436441,109830.0,109820.0,2.17284481]
[1748264505451,0.94876441,109830.0,109820.0,2.17284481]
[1748264506006,0.49436441,109830.0,109820.0,2.66979906]
[1748264506202,0.34180441,109830.0,109820.0,2.66979906]
[1748264506406,0.33680441,109830.0,109820.0,2.38136025]
[1748264506537,0.33880441,109830.0,109820.0,2.38136025]
[1748264506739,0.20330914,109830.0,109820.0,2.8783145]
[1748264507046,0.34890914,109830.0,109820.0,2.8783145]
[1748264508413,0.34890914,109830.0,109820.0,2.38136025]
[1748264510009,0.34890914,109830.0,109820.0,2.8783145]
[1748264511633,0.34890914,109830.0,109820.0,2.38136025]
[1748264511875,0.34890914,109830.0,109820.0,1.05083025]
[1748264516621,0.7384547,109830.0,109820.0,1.05083025]
[1748264520586,0.73754416,109830.0,109820.0,1.02393025]
[1748264521872,0.73754416,109830.0,109820.0,1.05163025]
[1748264522263,0.73754416,109830.0,109820.0,0.71163025]
[1748264524122,0.73754416,109830.0,109820.0,0.73793025]
[1748264525401,0.5023986,109830.0,109820.0,0.73793025]
[1748264525579,0.3548786,109830.0,109820.0,1.41700069]
[1748264525816,0.5004786,109830.0,109820.0,1.2348845]
[1748264526434,0.02120954,109830.0,109820.0,1.75700069]
[1748264526669,0.34564989,109850.0,109840.0,0.58648717]
[1748264526885,0.20227251,109850.0,109840.0,4.45709648]
[1748264527104,0.20227251,109850.0,109840.0,4.44799242]
[1748264527105,0.35697583,109850.0,109840.0,4.44799242]
[1748264527309,0.34787284,109850.0,109840.0,4.20040925]
[1748264527514,0.34787284,109850.0,109840.0,3.07893993]
[1748264527721,0.34787284,109850.0,109840.0,2.47424469]
[1748264527921,0.34787284,109850.0,109840.0,2.66543186]
[1748264528095,0.01110307,109850.0,109840.0,2.68463973]
[1748264528297,0.15670257,109850.0,109840.0,2.70284695]
[1748264528750,0.02020539,109850.0,109840.0,2.70284695]
[1748264528947,0.02020539,109850.0,109840.0,2.71679189]
[1748264529127,0.02930838,109850.0,109840.0,2.71679189]
[1748264529330,0.02020539,109850.0,109840.0,2.71679189]
[1748264529798,0.02020539,109850.0,109840.0,2.86239189]
[1748264530239,0.02930829,109850.0,109840.0,2.86239189]
[1748264530422,0.03841136,109850.0,109840.0,2.86239189]
[1748264530807,0.02930829,109850.0,109840.0,2.86239189]
[1748264531015,0.002,109850.0,109840.0,3.35934614]
[1748264531417,0.01110257,109850.0,109840.0,3.35934614]
[1748264531826,0.002,109850.0,109840.0,3.5735917]
[1748264532067,0.002,109850.0,109840.0,3.2335917]
[1748264533651,0.02020605,109850.0,109840.0,2.36343519]
[1748264533874,0.2022725,109850.0,109840.0,2.6106368]
[1748264534100,0.2022725,109850.0,109840.0,2.96884467]
[1748264534292,0.2022725,109850.0,109840.0,2.9779484]
[1748264534795,0.21137582,109850.0,109840.0,2.96884467]
[1748264534979,0.21137582,109850.0,109840.0,2.97794832]
[1748264535279,0.21137582,109850.0,109840.0,2.9779484]
[1748264535569,0.21137582,109850.0,109840.0,2.8323884]
[1748264535855,0.21137582,109850.0,109840.0,2.9779484]
[1748264537216,0.21137582,109850.0,109840.0,2.8532484]
[1748264537856,0.21137582,109850.0,109840.0,2.85324865]
[1748264538219,0.21137582,109850.0,109840.0,2.86235238]
[1748264538440,0.21137582,109850.0,109840.0,2.86235188]
[1748264539728,0.02930937,109850.0,109840.0,2.86235188]
[1748264540563,0.02020605,109850.0,109840.0,2.86235139]
[1748264541341,0.02020605,109850.0,109840.0,2.71679139]
[1748264542312,0.02020605,109850.0,109840.0,2.70593963]
[1748264543276,0.02020605,109850.0,109840.0,2.71679139]
[1748264545086,0.02930862,109850.0,109840.0,2.71679139]
[1748264545553,0.03841177,109850.0,109840.0,2.71679139]
[1748264546376,0.22958154,109850.0,109840.0,2.71679139]
[1748264546535,0.22958145,109850.0,109840.0,2.71679139]
[1748264546703,0.047515,109850.0,109840.0,2.71679139]
[1748264547085,0.22958212,109850.0,109840.0,2.71679139]
[1748264547764,0.22047922,109850.0,109840.0,2.68948044]
[1748264547975,0.21137615,109850.0,109840.0,2.69858417]
[1748264548523,0.21137615,109850.0,109840.0,2.70768782]
[1748264551297,0.21137615,109850.0,109840.0,2.68948044]
[1748264552064,0.21137615,109850.0,109840.0,2.68037663]
[1748264552267,0.202273,109850.0,109840.0,2.68948044]
[1748264552470,0.202273,109850.0,109840.0,2.69483101]
[1748264552647,0.202273,109850.0,109840.0,2.70393491]
[1748264552852,0.202273,109850.0,109840.0,2.71303872]
[1748264553038,0.202273,109850.0,109840.0,2.70393491]
[1748264553693,0.202273,109850.0,109840.0,2.71303872]
[1748264553891,0.202273,109850.0,109840.0,2.70218696]
[1748264554068,0.202273,109850.0,109840.0,2.69308315]
[1748264554246,0.19316977,109850.0,109840.0,2.68397942]
[1748264554455,0.19316977,109850.0,109840.0,2.65517942]
[1748264554652,0.19316977,109850.0,109840.0,2.67338713]
[1748264555091,0.19316977,109850.0,109840.0,2.68249078]
[1748264555348,0.19316977,109850.0,109840.0,2.70999078]
[1748264555637,0.20227284,109850.0,109840.0,3.20694503]
[1748264556132,0.21137557,109850.0,109840.0,3.2160486]
[1748264556734,0.22047889,109850.0,109840.0,3.2160486]
[1748264557282,0.22047889,109850.0,109840.0,2.68643275]
[1748264557726,0.22047889,109850.0,109840.0,2.65893275]
[1748264558136,0.19316977,109850.0,109840.0,2.44953787]
[1748264558337,0.22076977,109850.0,109840.0,2.42303787]
[1748264559174,0.22076977,109850.0,109840.0,2.43754223]
[1748264559696,0.19316977,109850.0,109840.0,2.61962525]
[1748264560103,0.19316977,109850.0,109840.0,2.46614223]
[1748264560532,0.19316977,109850.0,109840.0,2.64822525]
[1748264560727,0.19316977,109850.0,109840.0,2.6935333]
[1748264561157,0.19316977,109850.0,109840.0,2.69353338]
[1748264561573,0.19316977,109850.0,109840.0,2.48357655]
[1748264561721,0.19316977,109850.0,109840.0,2.48648828]
[1748264562412,0.19316977,109850.0,109840.0,2.49559218]
[1748264563109,0.19316977,109850.0,109840.0,2.49019163]
[1748264565405,0.19316977,109850.0,109840.0,2.49929536]
[1748264566083,0.19316977,109850.0,109840.0,2.49019163]
[1748264566941,0.19316977,109850.0,109840.0,2.48108782]
[1748264567659,0.19316977,109850.0,109840.0,2.45398782]
[1748264571952,0.19316977,109850.0,109840.0,2.46849218]
[1748264572162,0.19316977,109850.0,109840.0,2.45938828]
[1748264572391,0.23826645,109850.0,109840.0,2.23049713]
[1748264572821,0.23826645,109850.0,109840.0,1.04459818]
[1748264573036,0.32781201,109850.0,109840.0,1.04459818]
[1748264575289,0.32781201,109850.0,109840.0,0.67456524]
[1748264575510,0.32781201,109850.0,109840.0,1.01093898]
[1748264575710,0.32781201,109850.0,109840.0,0.67093898]
[1748264575929,0.32781201,109850.0,109840.0,1.01093898]
[1748264576754,0.21166645,109850.0,109840.0,1.01093898]
[1748264576961,0.48202645,109850.0,109840.0,1.01093898]
[1748264578200,0.51122645,109850.0,109840.0,1.01093898]
[1748264579961,0.51122645,109850.0,109840.0,0.99892335]
[1748264580236,0.51122645,109850.0,109840.0,1.01257457]
[1748264583696,0.54022645,109850.0,109840.0,1.01257457]
[1748264585587,0.54022645,109850.0,109840.0,0.51562032]
[1748264585803,0.54022645,109850.0,109840.0,1.01257457]
[1748264591979,0.54018645,109850.0,109840.0,1.01257457]
[1748264592194,0.51118645,109850.0,109840.0,1.01257457]
[1748264592415,0.48198645,109850.0,109840.0,1.04007457]
[1748264592806,0.48198645,109850.0,109840.0,1.06897457]
[1748264593001,0.01110299,109850.0,109840.0,1.77532328]
[1748264593218,0.17486888,109850.0,109840.0,1.77532328]
[1748264593922,0.02930888,109850.0,109840.0,1.77532328]
[1748264594113,0.02930888,109850.0,109840.0,1.77894954]
[1748264594387,0.02020573,109850.0,109840.0,1.77894954]
[1748264594539,0.02930888,109850.0,109840.0,1.77894954]
[1748264594737,0.02930888,109850.0,109840.0,2.07686954]
[1748264594948,0.002,109870.0,109860.0,0.54935636]
[1748264595120,0.002,109890.0,109880.0,0.26471824]
[1748264595410,0.34173154,109900.0,109890.0,0.60469919]
[1748264595551,0.04173154,109900.0,109890.0,6.93958494]
[1748264596193,0.04222875,109900.0,109890.0,6.93958494]
[1748264596596,0.00049721,109900.0,109890.0,6.44263069]
[1748264596923,0.00049721,109900.0,109890.0,6.9564666]
[1748264597410,0.00049721,109900.0,109890.0,6.97087649]
[1748264597956,0.00049721,109900.0,109890.0,7.26871649]
[1748264598159,0.00049721,109900.0,109890.0,7.35826205]
[1748264598361,0.04373154,109910.0,109900.0,0.60468015]
[1748264598583,0.05282923,109910.0,109900.0,6.44261165]
[1748264598784,0.06192708,109910.0,109900.0,6.45949331]
[1748264599238,0.05282923,109910.0,109900.0,6.45949331]
[1748264599532,0.061927,109910.0,109900.0,6.45949331]
[1748264599738,0.07102485,109910.0,109900.0,6.45949331]
[1748264600140,0.061927,109910.0,109900.0,6.45949331]
[1748264600347,0.061927,109910.0,109900.0,6.46049331]
[1748264600562,0.04373154,109910.0,109900.0,6.46049331]
[1748264600778,0.002,109910.0,109900.0,6.47398938]
[1748264601174,0.02929348,109910.0,109900.0,6.47398938]
[1748264601416,0.02929339,109910.0,109900.0,6.47398938]
[1748264601585,0.20216317,109910.0,109900.0,5.9497386]
[1748264601744,0.02929372,109910.0,109900.0,6.21947513]
[1748264601973,0.02019562,109910.0,109900.0,6.74352938]
[1748264602170,0.02929372,109910.0,109900.0,6.74352938]
[1748264602374,0.02019562,109910.0,109900.0,6.74352938]
[1748264602575,0.02929372,109910.0,109900.0,6.74352938]
[1748264602768,0.02929372,109910.0,109900.0,6.44568938]
[1748264602980,0.02929372,109910.0,109900.0,6.74352938]
[1748264603188,0.01109769,109910.0,109900.0,6.77062938]
[1748264604198,0.002,109910.0,109900.0,6.47278938]
[1748264604397,0.002,109910.0,109900.0,6.77058938]
[1748264608642,0.002,109910.0,109900.0,6.77054938]
[1748264610261,0.02019579,109910.0,109900.0,6.77054938]
[1748264610560,0.0201957,109910.0,109900.0,6.77054938]
[1748264610911,0.0201957,109910.0,109900.0,6.89524938]
[1748264612163,0.0201957,109910.0,109900.0,6.59748938]
[1748264612368,0.0201957,109910.0,109900.0,6.89524938]
[1748264612913,0.20216276,109910.0,109900.0,6.59748938]
[1748264613119,0.0292938,109910.0,109900.0,6.89520938]
[1748264613325,0.0201957,109910.0,109900.0,6.89520938]
[1748264614163,0.02019562,109910.0,109900.0,6.89520938]
[1748264614316,0.02019554,109910.0,109900.0,6.89520938]
[1748264614522,0.002,109910.0,109900.0,6.89520938]
[1748264615855,0.002,109910.0,109900.0,6.74972938]
[1748264616075,0.002,109910.0,109900.0,6.89520938]
[1748264616509,0.0110976,109910.0,109900.0,6.89520938]
[1748264617725,0.002,109910.0,109900.0,6.89520938]
[1748264617900,0.002,109910.0,109900.0,6.90598753]
[1748264619472,0.49315326,109930.0,109920.0,0.54924207]
[1748264619699,0.6113722,109930.0,109920.0,6.54043829]
[1748264620124,0.602276,109930.0,109920.0,6.54043829]
[1748264620347,0.631076,109930.0,109920.0,6.54043829]
[1748264620708,0.633076,109930.0,109920.0,6.54043829]
[1748264620904,0.335076,109930.0,109920.0,6.54043829]
[1748264621173,0.12434205,109930.0,109920.0,6.54953523]
[1748264621334,0.12434205,109930.0,109920.0,6.5313406]
[1748264621683,0.11524528,109930.0,109920.0,6.54953523]
[1748264621888,0.10614908,109930.0,109920.0,6.60793523]
[1748264622064,0.01524511,109930.0,109920.0,6.60793523]
[1748264622202,0.01524511,109930.0,109920.0,6.62979535]
[1748264622414,0.02434131,109930.0,109920.0,6.62979535]
[1748264622617,0.01324511,109930.0,109920.0,6.62979535]
[1748264622817,0.02234131,109930.0,109920.0,6.62979535]
[1748264623016,0.02334131,109930.0,109920.0,6.62979535]
[1748264623223,0.02134131,109930.0,109920.0,6.62979535]
[1748264623613,0.02234131,109930.0,109920.0,6.6405735]
[1748264623810,0.01324511,109930.0,109920.0,6.6405735]
[1748264624284,0.02234122,109930.0,109920.0,6.6405735]
[1748264624487,0.0314375,109930.0,109920.0,6.6405735]
[1748264624791,0.0314375,109930.0,109920.0,6.61490524]
[1748264625501,0.04053403,109930.0,109920.0,6.4603283]
[1748264625707,0.04053403,109930.0,109920.0,6.76706524]
[1748264625988,0.0314375,109930.0,109920.0,6.76706524]
[1748264626617,0.04053394,109930.0,109920.0,6.76706524]
[1748264627033,0.0314375,109930.0,109920.0,6.76706524]
[1748264627941,0.04053386,109930.0,109920.0,6.76706524]
[1748264629149,0.02728875,109930.0,109920.0,6.76706524]
[1748264629378,0.03638528,109930.0,109920.0,6.44032524]
[1748264629686,0.03638478,109930.0,109920.0,6.73796524]
[1748264629889,0.04548122,109930.0,109920.0,6.73801013]
[1748264630637,0.04548122,109930.0,109920.0,6.74101013]
[1748264630845,0.04548122,109930.0,109920.0,6.74401013]
[1748264632562,0.03638519,109930.0,109920.0,6.74401013]
[1748264632784,0.03638519,109930.0,109920.0,6.72960024]
[1748264633089,0.04548172,109930.0,109920.0,6.72960024]
[1748264633247,0.03638519,109930.0,109920.0,6.72960024]
[1748264633769,0.03638519,109930.0,109920.0,6.43196024]
[1748264634001,0.03638519,109930.0,109920.0,6.72960024]
[1748264634422,0.04548172,109930.0,109920.0,6.72960024]
[1748264635316,0.21831956,109930.0,109920.0,6.72960024]
[1748264635520,0.22741625,109930.0,109920.0,6.43196024]
[1748264635722,0.22741625,109930.0,109920.0,6.72960032]
[1748264635948,0.25792717,109930.0,109920.0,5.08108717]
[1748264637650,0.25792717,109930.0,109920.0,5.09554541]
[1748264637871,0.22882717,109930.0,109920.0,5.09554541]
[1748264638070,0.19103064,109930.0,109920.0,4.95010541]
[1748264638271,0.24883064,109930.0,109920.0,5.09554541]
[1748264640242,0.24883064,109930.0,109920.0,5.08108717]
[1748264640999,0.24883064,109930.0,109920.0,4.93564717]
[1748264641194,0.24883064,109930.0,109920.0,5.08108717]
[1748264643401,0.24883064,109930.0,109920.0,4.93564717]
[1748264643573,0.24883064,109930.0,109920.0,5.08108717]
[1748264644563,0.24883064,109930.0,109920.0,4.93564717]
[1748264644778,0.24883064,109930.0,109920.0,5.08108717]
[1748264645174,0.24883064,109930.0,109920.0,4.93564717]
[1748264645386,0.24883064,109930.0,109920.0,5.08108717]
[1748264645536,0.24883064,109930.0,109920.0,5.06347845]
[1748264646170,0.24883064,109930.0,109920.0,5.06279921]
[1748264646823,0.24883064,109930.0,109920.0,5.06211991]
[1748264647023,0.24883064,109930.0,109920.0,4.91667991]